Cogmind - Beta 16 @@@ ROGUE MODE // 2026.01.31 @ 15:00:29 Player: katharsis Result: Self-destructed Performance ------------- Evolutions (1) 500 Regions Visited (2) 400 Robots Destroyed (12) 60 Value Destroyed (331) 331 Prototype IDs (0) 0 Alien Tech Used (0) 0 Bonus (0) 0 TOTAL SCORE: 1291 Bonus ------- None Cogmind --------- Core Integrity 204/400 Matter 300/300 Energy 250/250 System Corruption 0% Temperature Cool (0) Movement Walking (680) Ox8 Location -9/Materials Parts ------- > --- POWER (1) -------- Ion Engine > --- PROPULSION (4) --- Aluminum Leg > --- UTILITY (2) ------ Huge Storage Unit > --- WEAPON (2) ------- (None) > --- INVENTORY (25) --- Ion Engine Ion Engine Heat Sink Small Storage Unit Medium Laser Medium Laser Beam Rifle Rocket Launcher Katana Peak State ------------ > --- POWER ------------ Light Ion Engine > --- PROPULSION ------- Aluminum Leg Aluminum Leg Aluminum Leg > --- UTILITY ---------- Huge Storage Unit Seismic Detector > --- WEAPON ----------- Beam Cannon Light Assault Rifle > --- INVENTORY -------- Ion Engine Heat Sink Small Storage Unit Medium Laser Medium Laser [Rating: 8] Favorites ----------- Power Light Ion Engine Engine Light Ion Engine Propulsion Aluminum Leg Leg Aluminum Leg Utility Seismic Detector Device Seismic Detector Storage Huge Storage Unit Protection Light Armor Plating Weapon Light Assault Rifle Energy Cannon Beam Cannon Ballistic Gun Light Assault Rifle Build | -11 -10 -9 ------- Run | Yrd Mat Mat Slots Evolved 2 | . . 2 Power . | . . . Propulsion 2 | . . 2 Utility . | . . . Weapon . | . . . Parts Attached 15 | 7 3 5 Power 3 | 1 . 2 Engine 3 | 1 . 2 Core . | . . . Reactor . | . . . Propulsion 4 | 2 . 2 Treads . | . . . Leg 4 | 2 . 2 Wheel . | . . . Hover . | . . . Flight . | . . . Utility 5 | 2 2 1 Device 1 | 1 . . Storage 3 | 1 2 . Processor . | . . . Hackware . | . . . Protection 1 | . . 1 Artifact . | . . . Weapon 3 | 2 1 . Energy Gun . | . . . Energy Cannon 1 | . 1 . Ballistic Gun 2 | 2 . . Ballistic Cannon . | . . . Launcher . | . . . Special Weapon . | . . . Impact Weapon . | . . . Slashing Weapon . | . . . Piercing Weapon . | . . . Special Melee Weapon . | . . . Unidentified Prototypes . | . . . Parts Lost 8 | . . 8 Power 1 | . . 1 Propulsion 3 | . . 3 Utility 2 | . . 2 Weapon 2 | . . 2 Highest Loss Streak 4 | . . 4 To Critical Strikes . | . . . Average Backups 5 | 1 4 7 Power 1 | . 1 1 Propulsion . | . . . Utility 1 | . . 2 Weapon 2 | . 1 3 Tool/Special . | . . . Unused Backups 8 | . 1 7 Power 1 | . . 1 Propulsion . | . . . Utility 1 | . . 1 Weapon 6 | . 1 5 Tool/Special . | . . . Average Slot Usage (%) 88 | . 100 79 Engine 12 | . 14 10 Leg 27 | . 28 26 Device 10 | . 14 8 Storage 12 | . 14 11 Energy Cannon 11 | . 13 11 Ballistic Gun 12 | . 14 10 Peak Build Rating 8 | 7 7 8 Average Rating 7 | 4 7 7 On Entrance 4 | . 7 7 Avg Prop Armor Cover (%) . | . . . Naked Turns . | . . . Heaviest Build 90 | 12 88 90 Greatest Support 30 | 20 20 30 Greatest Overweight (x) 8 | . 4 8 Average Overweight (x) 1 | . . 3 Largest Inventory Capacity 25 | 8 25 25 Average Capacity 17 | 5 11 25 Most Carried 9 | 2 6 9 Average Carried 5 | 1 4 7 Final Capacity 25 | 8 25 25 Final Carried 9 | 2 6 9 Class Distribution -------------------- 100% | Mutant Dominant Class ---------------- Mutant | -10/Materials Mutant | -9/Materials Resources | -11 -10 -9 ----------- Run | Yrd Mat Mat Matter Collected 419 | 294 50 75 Remotely . | . . . Salvage Created 498 | 96 121 281 Parts 20 | 9 2 9 Haulers Intercepted 1 | . 1 . Recyclers Shooed 2 | 2 . . Parts Field Recycled . | . . . Retrieved Matter . | . . . Parts Self-Destructed . | . . . Prevented . | . . . Parts Restored . | . . . Kills | -11 -10 -9 ------- Run | Yrd Mat Mat Combat Hostiles Destroyed 8 | . 2 6 Guns 3 | . 1 2 Cannons 5 | . 1 4 Classes Destroyed 6 | 2 2 2 Tunneler 2 | 2 . . Hauler 1 | . 1 . Recycler 1 | 1 . . Grunt 6 | . 2 4 Duelist 1 | . . 1 Sentry 1 | . . 1 Best Kill Streak 4 | 3 3 4 Combat Bots Only 4 | . 2 4 Max Kills in Single Turn 1 | 1 1 1 Gunslinging . | . . . Exploded . | . . . Melee . | . . . Uniques/NPCs Destroyed . | . . . Combat | -11 -10 -9 -------- Run | Yrd Mat Mat Hostile Shots Fired 96 | . 1 95 Missed 27 | . . 27 Hits 69 | . 1 68 Melee 5 | . . 5 Projectile 64 | . 1 63 Critical Strikes 1 | . . 1 Damage Taken 1014 | . 75 939 Core 226 | . 30 196 Absorbed by Shields . | . . . Core Remaining (%) 94 | 100 88 . Volleys Fired 38 | 10 4 24 Largest 2 | 2 2 2 Hottest 80 | 40 80 80 Shots Fired 76 | 20 8 48 Gun 48 | 20 4 24 Cannon 28 | . 4 24 Launcher . | . . . Special . | . . . Kinetic 48 | 20 4 24 Thermal 28 | . 4 24 Explosive . | . . . Electromagnetic . | . . . Robot Hit Streak 12 | 3 4 12 Robot Miss Streak 6 | 6 1 4 Penetration Max . | . . . Secondary Targets . | . . . Shots Hit Robots 47 | 8 5 34 Core Hits 19 | 4 4 11 Critical Kills . | . . . Critical Parts Destroyed . | . . . Critical Strikes . | . . . Melee Attacks . | . . . Impact . | . . . Slashing . | . . . Piercing . | . . . Sneak Attacks . | . . . Combat Hostiles . | . . . Follow-up Attacks . | . . . Damage Inflicted 639 | 103 71 465 Guns 236 | 103 19 114 Cannons 403 | . 52 351 Explosions . | . . . Melee . | . . . Ramming . | . . . Kinetic 236 | 103 19 114 Thermal 403 | . 52 351 Explosive . | . . . Electromagnetic . | . . . Impact . | . . . Slashing . | . . . Piercing . | . . . Highest Corruption 2 | . 2 . Average Corruption 2 | . 2 . Corruption Purged . | . . . Corruption Blocked . | . . . Effects 2 | . 2 . Data Loss (minor) 2 | . 2 . Overload Shots . | . . . Overflow Damage . | . . . Projectiles . | . . . Explosions . | . . . Melee . | . . . Knockbacks . | . . . Impact . | . . . Kinetic . | . . . Secondary . | . . . Self-Inflicted Damage . | . . . Shots . | . . . Rammed . | . . . Targets Rammed . | . . . Kicked . | . . . Crushed . | . . . Highest Temperature 384 | . 126 384 Average Temperature 133 | . 60 145 Received Heat Transfer 423 | . 6 417 Effects 1 | . . 1 Shutdowns 1 | . . 1 Siege Activations . | . . . Martial Activations . | . . . Shielding Activations . | . . . Robots Disrupted . | . . . Combat Hostiles . | . . . Robots Corrupted . | . . . Combat Hostiles . | . . . Parts Fried . | . . . Impact Corruptions . | . . . Robots Melted . | . . . Combat Hostiles . | . . . Parts Melted 1 | . . 1 Heat Transferred 851 | . 111 740 Parts Sabotaged . | . . . Parts Stolen . | . . . Parts Stripped . | . . . Power Chain Reactions . | . . . Alert | -11 -10 -9 ------- Run | Yrd Mat Mat Maximum Alert Level . | . . . Low Security (%) 100 | 100 100 100 Level 1 . | . . . Level 2 . | . . . Level 3 . | . . . Level 4 . | . . . Level 5 . | . . . High Security . | . . . Max Security . | . . . Peak Influence 60 | 10 40 60 Initial . | . . . Average 10 | . 6 15 Influence Increases 212 | 15 47 150 Destroy 0b10 Robot/C 160 | . 40 120 Destroy 0b10 Robot/NC 20 | 15 5 . Destroy Leader 32 | . 2 30 Influence Decreases 212 | 15 47 150 Time Decay 172 | 15 47 110 Lost Part 40 | . . 40 Squads Dispatched 1 | . . 1 Investigation . | . . . Extermination . | . . . Reinforcement 1 | . . 1 Assault . | . . . Garrison . | . . . Intercept . | . . . Searches Triggered . | . . . Construction Impeded . | . . . Haulers Reinforced . | . . . Active Scanning Responses . | . . . Cargo Convoy Interrupts . | . . . Stealth | -11 -10 -9 --------- Run | Yrd Mat Mat Distress Signals 1 | . . 1 Communications Jammed . | . . . Distress Signals . | . . . Times Spotted 13 | . 2 11 Peak Tracking Total 4 | . 1 4 Tactical Retreats . | . . . Traps | -11 -10 -9 ------- Run | Yrd Mat Mat Traps Triggered 3 | . 3 . Indirectly . | . . . Trap Hack Attempts . | . . . Triggered . | . . . Disarmed . | . . . Reprogrammed . | . . . Reused . | . . . Traps Extracted . | . . . Installed . | . . . Triggered . | . . . Machines | -11 -10 -9 ---------- Run | Yrd Mat Mat Machines Disabled . | . . . Max in Single Turn . | . . . Machines Repaired . | . . . Machines Dismantled . | . . . Machines Sabotaged . | . . . Overloaded Fab Kills . | . . . Hacking | -11 -10 -9 --------- Run | Yrd Mat Mat Machines Accessed . | . . . Terminals . | . . . Fabricators . | . . . Repair Stations . | . . . Recycling Units . | . . . Scanalyzers . | . . . Garrison Access . | . . . Total Hacks . | . . . Successful . | . . . Failed . | . . . Catastrophic . | . . . Database Lockouts . | . . . Manual . | . . . Terminals . | . . . Fabricators . | . . . Repair Stations . | . . . Recycling Units . | . . . Scanalyzers . | . . . Garrison Access . | . . . Terminal Hacks . | . . . Fabricator Hacks . | . . . Repair Station Hacks . | . . . Recycling Unit Hacks . | . . . Scanalyzer . | . . . Garrison Access Hacks . | . . . Unauthorized Hacks . | . . . Terminals . | . . . Fabricators . | . . . Repair Stations . | . . . Recycling Units . | . . . Scanalyzers . | . . . Garrison Access . | . . . Data Cores Recovered . | . . . Used . | . . . Hacking Detections . | . . . Full Trace Events . | . . . Feedback Events . | . . . Feedback Blocked . | . . . Robot Schematics Acquired . | . . . Robots Built . | . . . Authchips . | . . . Time . | . . . Total Robot Build Rating . | . . . Part Schematics Acquired . | . . . Parts Built . | . . . Authchips . | . . . Time . | . . . Total Part Build Rating . | . . . Part Studies Acquired . | . . . Parts Repaired . | . . . Time . | . . . Parts Recycled . | . . . Recycled Matter . | . . . Retrieved Matter . | . . . Retrieved Components . | . . . Parts Scanalyzed . | . . . Part Schematics Acquired . | . . . Parts Damaged . | . . . Bothacking | -11 -10 -9 ------------ Run | Yrd Mat Mat Used RIF Installer . | . . . Robots Hacked . | . . . Non-combat . | . . . Combat . | . . . Robot Hacks Applied . | . . . Relay Couplers Released . | . . . Fabnet Peak Effective % . | . . . Robots Rewired . | . . . Allies Hacked . | . . . Hacks Repelled . | . . . Allies | -11 -10 -9 -------- Run | Yrd Mat Mat Total Allies . | . . . Largest Group . | . . . Highest-Rated Group . | . . . Highest-Rated Ally . | . . . Total Orders . | . . . Ally Attacks . | . . . Total Damage . | . . . Kills . | . . . Allies Corrupted . | . . . Allies Melted . | . . . Intel | -11 -10 -9 ------- Run | Yrd Mat Mat Active Infowar (turns) 619 | 15 315 289 Seismic 619 | 15 315 289 Robot Analysis Total . | . . . Derelict Logs Recovered . | . . . Drone Launches . | . . . Drone Recoveries . | . . . Exploration | -11 -10 -9 ------------- Run | Yrd Mat Mat Turns Passed 806 | 98 315 393 Spaces Moved 344 | 49 208 87 Core 1 | 1 . . Treads . | . . . Legs 343 | 48 208 87 Wheels . | . . . Hover . | . . . Flight . | . . . Fastest Speed 50 | 50 120 260 Average Speed 189 | 118 141 345 Slowest Speed 680 | 120 400 680 Overloaded Moves . | . . . Propulsion Burnouts . | . . . Robots Hopped . | . . . Potential Cave-ins . | . . . Cave-ins Triggered . | . . . Exploration Rate (%) 20 | 4 47 10 Regions Visited 2 Branch Regions . Pre-discovered Areas . | . . . Known Exits Taken . | . . . Unknown Exits Taken 2 | 1 1 . Scrap Searched . | . . . Spaces Dug . | . . . Terrain Destroyed . | . . . Melee . | . . . Projectile . | . . . AOE . | . . . Terrain Rammed . | . . . Walls Destroyed . | . . . Machines Disabled . | . . . Actions | -11 -10 -9 --------- Run | Yrd Mat Mat Total 423 | 67 222 134 Wait 14 | . 2 12 Move 342 | 48 207 87 Hop . | . . . Pick Up 11 | 2 4 5 Fast Attach 9 | 7 1 1 Attach 3 | . . 3 Detach . | . . . Swap 5 | . 3 2 Drop 1 | . 1 . Fire 38 | 10 4 24 Melee . | . . . Ram . | . . . Kick . | . . . Crush . | . . . Escape Stasis . | . . . Rewire . | . . . Trap . | . . . Miscellaneous . | . . . Route ------- -11/Scrapyard -10/Materials -9/Materials History --------- Turn | Location | Event 18 | -11/Scrapyard | Discovered new exit (range 14) 99 | -11/Scrapyard | Entered Materials 304 | -10/Materials | Build established: Mutant 330 | -10/Materials | Discovered new exit (range 8) 414 | -10/Materials | Entered another Materials area 414 | -9/Materials | Evolved 2 slots: Propulsion x2 623 | -9/Materials | Lost 4 parts (1p2n1u) 807 | -9/Materials | Self-destructed Last Messages --------------- 00601_ Power failure, Ion Engine shutdown. 00604_ K-01 Serf collects debris. 00609_ Acquired Aluminum Leg. 00612_ K-01 Serf collects debris. 00616_ Acquired 39 matter. 00616_ K-01 Serf collects debris. 00624_ Acquired Katana. 00627_ K-01 Serf collects debris. 00630_ Acquired 10 matter. 00631_ K-01 Serf collects debris. 00638_ Acquired Ion Engine. 00654_ K-01 Serf collects debris. 00699_ Acquired Rocket Launcher. 00769_ ALERT: Hostiles spotted, dispatching reinforcements to Terminal M003. 00771_ Seismic Detector destroyed. 00789_ W-16 Scout sends out distress signal. 00792_ Aluminum Leg destroyed. 00795_ Lgt. Assault Rifle destroyed. 00804_ Beam Cannon destroyed. Map ----- +----------------------------------------------------+ | ?????????????????????????????????????????????????? | | ?????????????????????????????????????????????????? | | ?????????????????????????????????????????????????? | | ?????????????????????????????????????????????????? | | ?????????????????????????????????????########????? | | ?????????????????????????????????????# """ #####? | | ?????????????????????????????????????# """ # #? | | ?????????????????????????????????????# """ # #? | | ??????????????????????? ?????######## #[ #? | | ??????????????????????? ?????? # %+% #? | | ??????????????????????? ??????? # #!% #? | | ??????????????????????? ???????? ########! #? | | ??????????????????????? ????????# #??????# #? | | ???????????????????????# ????????# #??????# #? | | ??????????????????????##g######### #??????# #? | | ??????????????????????# ## ##?????# ## | | ??????????????????????# # ####### | | ??????????????????????# # | | ??????????????????????# + | | ??????????????????????# # | | ??????????????????????# # ###+###### | | ??????????????????????# ## ## #?? | | ??????????????????????# ## ## ""#??^^ | | ??????????????????????###g######## ## T"#??^^ | | ????????????????????????# #??????# ## [ ""#?? | | ????????????????????????#@#??????# ## #?? | | ????????????????????????# #??????# ## #??? | | ????????????????????????# #??????# #########??? | | ????????????????????????# #??????# #???????????? | | ????????????????????????# #??????# #???????????? | | ???????????????????????? ?????? #???????????? | | ???????????????????????? ?????? #???????????? | | ???????????????????????? ?????? #???????????? | | ???????????????????????? ?????## #???????????? | | ????????????????????????Y ??????# ????????????? | | ???????????????????????? ??????# ????????????? | | ???????????????????????? ??????? ????????????? | | ???????????????????????? ??????????????????????? | | ????????????????????????###??????????????????????? | | ?????????????????????????????????????????????????? | | ?????????????????????????????????????????????????? | | ?????????????????????????????????????????????????? | | ?????????????????????????????????????????????????? | | ?????????????????????????????????????????????????? | | ?????????????????????????????????????????????????? | | ?????????????????????????????????????????????????? | | ?????????????????????????????????????????????????? | | ?????????????????????????????????????????????????? | | ?????????????????????????????????????????????????? | | ?????????????????????????????????????????????????? | +----------------------------------------------------+ Best States ------------- Heat Dissipation 28 Energy Generation 10 Energy Capacity 250 Matter Stores 300 Matter Capacity 300 Sight Range 16 Terrain Scan Density 10 Armor Coverage 150 Evasion (%) 55 Item Schematics ----------------- None Robot Schematics ------------------ None Fabricated ------------ Nothing Repaired ---------- Nothing Studied --------- None Alien Tech Used ----------------- None Achievements -------------- None Challenges ------------ None Game ------ Seed ThunderBarrageCloak Manual? 0 Play Time 00:10:47 Cumulative 7.8 hours Start 2026.01.31 @ 14:52:17 End 2026.01.31 @ 15:00:29 Sessions 1 Manual Loads 0 Difficulty Rogue Special Mode None Game No. 11 Rogue 11 Adventurer 0 Explorer 0 Win Type - Total 0 Types 0/0/0/0/0/0/0/0/0/0 Lore% 4 Gallery% 8 Achievement% 9 Wizard Run 0 Options --------- Layout 1 ASCII 0 Keyboard 1 Movement Numpad Keybinds 0 Fullscreen 2 Font 24/Smallcaps Map View 50x35 Zoom Use 0% Tactical HUD 1 Map Filters NONE Filters NONE Steam 1 RUN: b6869619-9e1a-4fb3-91c9-268f1d84c28a